bitfinex/quotes_SOLUSD_20220207
["timestamp","ask_amount","ask_price","bid_price","bid_amount"]
[1644223227790,58.98125568,116.42,116.36,46.89222092]
[1644223229787,58.98125568,116.42,116.37,1.75834484]
[1644223229988,58.98125568,116.42,116.38,43.66059275]
[1644223230391,58.98125568,116.42,116.38,43.91059275]
[1644223231992,58.98125568,116.42,116.38,43.66059275]
[1644223232190,58.98125568,116.42,116.38,43.91059275]
[1644223232392,18.8931,116.42,116.38,43.91059275]
[1644223232594,12.8905,116.44,116.38,45.66893759]
[1644223232792,42.9659,116.48,116.38,45.66893759]
[1644223233095,61.2459,116.48,116.39,24.9656]
[1644223233292,61.2459,116.48,116.39,25.2156]
[1644223233492,34.63141275,116.47,116.4,34.4821681]
[1644223233691,40.63141275,116.47,116.4,34.7321681]
[1644223233891,40.88141275,116.47,116.4,34.7321681]
[1644223234091,38.87689185,116.45,116.38,1.75834484]
[1644223234292,82.10159185,116.45,116.38,1.75834484]
[1644223234492,88.10159185,116.45,116.37,23.7518]
[1644223235192,88.10159185,116.45,116.37,60.67575391]
[1644223235992,12.8924,116.43,116.37,60.67575391]
[1644223236195,47.80889546,116.42,116.37,60.67575391]
[1644223236593,54.05889546,116.42,116.37,23.7518]
[1644223236795,54.05889546,116.42,116.32,12.28]
[1644223236994,66.95219546,116.42,116.33,23.3059]
[1644223237594,79.23219546,116.42,116.31,59.90931442]
[1644223237796,104.55160636,116.42,116.31,59.90931442]
[1644223238797,104.55160636,116.42,116.31,60.15931442]
[1644223239999,104.55160636,116.42,116.31,24.5174]
[1644223240399,104.55160636,116.42,116.27,1.22154313]
[1644223240599,23.2961,116.41,116.29,0.25]
[1644223240799,12.9001,116.38,116.29,0.25]
[1644223241002,47.88122609,116.37,116.29,47.14968555]
[1644223241199,54.13122609,116.37,116.29,47.14968555]
[1644223242701,53.88122609,116.37,116.29,47.14968555]
[1644223243103,12.9001,116.36,116.29,47.14968555]
[1644223243303,12.9001,116.36,116.29,48.90803039]
[1644223243504,34.77370538,116.35,116.29,48.90803039]
[1644223244201,34.77370538,116.35,116.29,46.89968555]
[1644223244401,34.77370538,116.35,116.29,47.14968555]
[1644223244601,40.77370538,116.35,116.29,47.14968555]
[1644223245205,41.02370538,116.35,116.29,47.14968555]
[1644223245507,41.02370538,116.35,116.29,46.89968555]
[1644223246707,40.77370538,116.35,116.29,47.14968555]
[1644223247706,6.0,116.35,116.29,47.14968555]
[1644223248110,18.9001,116.36,116.29,47.14968555]
[1644223248306,19.1501,116.36,116.29,47.14968555]
[1644223248605,47.45489882,116.35,116.29,47.14968555]
[1644223249005,53.45489882,116.35,116.29,47.14968555]
[1644223249409,53.45489882,116.35,116.29,46.89968555]
[1644223250009,53.70489882,116.35,116.29,46.89968555]
[1644223250611,53.45489882,116.35,116.29,46.89968555]
[1644223250809,53.45489882,116.35,116.28,23.0073]
[1644223251009,66.60579882,116.35,116.28,23.0073]
[1644223251210,66.35579882,116.35,116.28,23.2573]
[1644223251711,66.60579882,116.35,116.28,23.2573]
[1644223251913,66.60579882,116.35,116.28,62.23677457]
[1644223253511,66.60579882,116.35,116.28,61.98677457]
[1644223253914,66.60579882,116.35,116.28,38.97947457]
[1644223254712,66.60579882,116.35,116.25,23.85704338]
[1644223255513,78.88579882,116.35,116.25,23.85704338]
[1644223255713,78.88579882,116.35,116.26,36.731629]
[1644223256113,78.88579882,116.35,116.26,36.981629]
[1644223262822,60.35579882,116.35,116.26,36.981629]
[1644223263220,60.35579882,116.35,116.28,42.53097966]
[1644223263620,60.35579882,116.35,116.28,42.78097966]
[1644223264249,66.60579882,116.35,116.28,42.78097966]
[1644223265447,66.60579882,116.35,116.28,0.25]
[1644223265848,66.60579882,116.35,116.27,23.3966]
[1644223265849,66.60579882,116.35,116.27,23.6466]
[1644223266448,66.60579882,116.35,116.27,67.02926524]
[1644223266851,78.88579882,116.35,116.27,67.02926524]
[1644223267049,78.88579882,116.35,116.27,23.6466]
[1644223267249,78.88579882,116.35,116.25,0.10804338]
[1644223267653,80.99140972,116.35,116.25,0.10804338]
[1644223268051,82.17597615,116.35,116.25,0.10804338]
[1644223270255,6.31744,116.34,116.25,0.10804338]
[1644223270458,0.44,116.32,116.25,0.10804338]
[1644223270666,19.09866643,116.3,116.25,0.10804338]
[1644223270857,13.46456643,116.29,116.25,0.10804338]
[1644223271057,39.30928194,116.28,116.25,0.10804338]
[1644223271258,36.43307422,116.26,116.25,0.10804338]
[1644223271556,48.71307422,116.26,116.25,0.10804338]
[1644223271757,61.02747416,116.26,116.25,0.10804338]
[1644223272959,73.94047416,116.26,116.25,0.10804338]
[1644223282273,73.69047416,116.26,116.25,0.10804338]
[1644223283673,73.94047416,116.26,116.25,0.10804338]
[1644223283874,73.69047416,116.26,116.25,0.10804338]
[1644223284373,31.25739994,116.26,116.25,0.10804338]
[1644223284575,6.06439994,116.26,116.25,0.10804338]
[1644223289588,12.06439994,116.26,116.25,0.10804338]
[1644223289789,6.06439994,116.26,116.25,0.10804338]
[1644223290187,12.06439994,116.26,116.25,0.10804338]
[1644223290388,6.06439994,116.26,116.25,0.10804338]
[1644223290603,12.06439994,116.26,116.25,0.10804338]
[1644223291204,6.06439994,116.26,116.25,0.10804338]
[1644223291405,97.93696114,116.37,116.25,0.10804338]
[1644223291406,1.18456643,116.36,116.26,93.0]
[1644223291709,13.46456643,116.38,116.26,93.25]
[1644223291904,13.46456643,116.38,116.26,94.75483692]
[1644223292105,43.73280912,116.37,116.27,48.0238305]
[1644223292307,44.91737555,116.37,116.27,48.0238305]
[1644223292504,12.28,116.36,116.27,48.0238305]
[1644223292703,46.01808591,116.35,116.27,48.0238305]
[1644223292904,12.9032,116.33,116.27,48.0238305]
[1644223293104,35.85883767,116.32,116.25,0.10804338]
[1644223293505,41.85883767,116.32,116.25,0.10804338]
[1644223294107,42.10883767,116.32,116.25,0.10804338]
[1644223294909,55.01353767,116.32,116.25,0.10804338]
[1644223296908,56.1981041,116.32,116.25,0.10804338]
[1644223297308,68.4781041,116.32,116.25,0.10804338]
[1644223297709,1.18456643,116.31,116.25,0.10804338]
[1644223297908,55.61822581,116.3,116.25,0.10804338]
[1644223298109,61.61822581,116.3,116.25,0.10804338]
[1644223298311,61.86822581,116.3,116.25,0.10804338]
[1644223311725,12.28,116.29,116.25,0.10804338]
[1644223311924,12.912,116.28,116.25,0.10804338]
[1644223312124,18.912,116.28,116.25,0.10804338]
[1644223312324,19.162,116.28,116.25,0.10804338]
[1644223312527,62.09526272,116.28,116.25,0.10804338]
[1644223312725,19.162,116.28,116.25,0.10804338]
[1644223313329,18.912,116.28,116.25,0.10804338]
[1644223313727,54.33415606,116.28,116.25,0.10804338]
[1644223314626,48.33415606,116.28,116.25,0.10804338]
[1644223314827,48.58415606,116.28,116.25,0.10804338]
[1644223315833,13.162,116.28,116.25,0.10804338]
[1644223316030,18.912,116.28,116.25,0.10804338]
[1644223316232,18.912,116.28,116.26,3.03219997]
[1644223316929,12.912,116.28,116.26,3.03219997]
[1644223317130,12.9067,116.3,116.27,3.03219997]
[1644223317329,12.9067,116.3,116.28,3.03219997]
[1644223317529,1.18456643,116.33,116.28,3.03219997]
[1644223317732,6.0,116.32,116.28,3.03219997]
[1644223317935,1.18456643,116.32,116.25,38.69443263]
[1644223318130,1.18456643,116.31,116.25,0.10804338]
[1644223318333,12.9066,116.3,116.25,0.10804338]
[1644223318730,19.1566,116.3,116.25,0.10804338]
[1644223319131,48.54509747,116.29,116.25,0.10804338]
[1644223319330,48.79509747,116.29,116.25,0.10804338]
[1644223319530,54.79509747,116.29,116.25,0.10804338]
[1644223320132,6.25,116.29,116.25,0.10804338]
[1644223320332,18.9066,116.3,116.25,0.10804338]
[1644223321134,43.57255101,116.29,116.25,0.10804338]
[1644223323335,49.57255101,116.29,116.25,0.10804338]
[1644223325237,56.73055101,116.29,116.25,0.10804338]
[1644223325437,62.73055101,116.29,116.25,0.10804338]
[1644223327041,12.908,116.29,116.25,0.10804338]
[1644223327245,14.08906643,116.32,116.25,0.10804338]
[1644223327643,20.08906643,116.32,116.25,0.10804338]
[1644223327843,14.08906643,116.32,116.25,0.10804338]
[1644223328050,1.18456643,116.33,116.25,1.86822805]
[1644223328249,1.18456643,116.34,116.25,2.11822805]
[1644223328449,1.18456643,116.34,116.25,14.39822805]
[1644223328651,24.88361318,116.38,116.25,14.39822805]
[1644223328652,1.18456643,116.35,116.26,24.5107]
[1644223328849,1.18456643,116.35,116.26,49.0912]
[1644223329050,35.01277517,116.34,116.27,41.62847633]
[1644223329249,35.01277517,116.34,116.27,41.87847633]
[1644223329448,41.01277517,116.34,116.27,41.87847633]
[1644223330451,41.01277517,116.34,116.27,47.87847633]
[1644223331867,41.01277517,116.34,116.27,41.87847633]
[1644223334667,41.01277517,116.34,116.27,40.11829166]
[1644223335267,41.01277517,116.34,116.25,1.86822805]
[1644223335468,41.26277517,116.34,116.25,0.10804338]
[1644223336277,42.4473416,116.34,116.25,0.10804338]
[1644223336671,12.28,116.33,116.25,0.10804338]
[1644223336872,48.31737847,116.32,116.25,0.10804338]
[1644223337173,54.31737847,116.32,116.25,0.10804338]
[1644223337373,54.56737847,116.32,116.25,0.10804338]
[1644223337971,12.9067,116.31,116.25,0.10804338]
[1644223338172,36.6570368,116.3,116.25,0.10804338]
[1644223338573,42.6570368,116.3,116.25,0.10804338]
[1644223339172,12.9067,116.31,116.25,0.10804338]
[1644223339372,13.1567,116.31,116.25,0.10804338]
[1644223339573,19.1567,116.31,116.25,0.10804338]
[1644223339773,31.4367,116.31,116.25,0.10804338]
[1644223340377,12.9093,116.29,116.25,0.10804338]
[1644223340576,34.3809344,116.28,116.25,0.10804338]
[1644223340778,34.6309344,116.28,116.25,0.10804338]
[1644223340975,40.6309344,116.28,116.25,0.10804338]
[1644223341577,40.3809344,116.28,116.25,0.10804338]
[1644223342076,12.9094,116.27,116.25,0.10804338]
[1644223342878,18.9094,116.27,116.25,0.10804338]
[1644223343679,34.3809344,116.28,116.25,0.10804338]
[1644223343882,40.3809344,116.28,116.25,0.10804338]
[1644223345781,6.0,116.28,116.25,0.10804338]
[1644223345982,12.9047,116.32,116.25,0.10804338]
[1644223346184,18.9047,116.32,116.25,0.10804338]
[1644223346787,42.00537704,116.31,116.25,0.10804338]
[1644223346984,18.9047,116.32,116.25,0.10804338]
[1644223347286,6.0,116.32,116.25,0.10804338]
[1644223347686,18.9019,116.34,116.25,0.10804338]
[1644223347885,18.9019,116.34,116.25,23.32344338]
[1644223348084,37.96348166,116.33,116.26,40.39966797]
[1644223348284,37.96348166,116.33,116.26,40.64966797]
[1644223349086,43.96348166,116.33,116.26,40.64966797]
[1644223349288,37.96348166,116.33,116.26,40.64966797]
[1644223349494,14.08416643,116.36,116.26,54.68985264]
[1644223349686,1.18456643,116.38,116.26,112.28985264]
[1644223349889,1.18456643,116.39,116.27,48.2254]
[1644223350089,1.18456643,116.39,116.28,12.28]
[1644223350289,1.18456643,116.39,116.28,14.29018467]
[1644223350511,48.527,116.43,116.29,42.50538629]
[1644223350512,47.70404201,116.38,116.29,42.50538629]
[1644223350789,47.70404201,116.38,116.31,41.08833237]
[1644223350989,53.70404201,116.38,116.31,41.08833237]
[1644223351188,53.70404201,116.38,116.31,43.09851704]
[1644223355193,53.95404201,116.38,116.31,2.01018467]
[1644223355393,53.95404201,116.38,116.3,24.0526]
[1644223356195,53.95404201,116.38,116.31,43.93771348]
[1644223356797,53.95404201,116.38,116.31,44.18771348]
[1644223356999,66.85214201,116.38,116.31,44.18771348]
[1644223357197,66.85214201,116.38,116.31,0.25]
[1644223357597,66.85214201,116.38,116.27,47.9618]
[1644223357798,43.0142,116.35,116.25,0.10804338]
[1644223358318,42.06886672,116.34,116.25,0.10804338]
[1644223358717,48.31886672,116.34,116.25,0.10804338]
[1644223358916,61.22316672,116.34,116.25,0.10804338]
[1644223360916,60.97316672,116.34,116.25,0.10804338]
[1644223362317,61.22316672,116.34,116.25,0.10804338]
[1644223365122,46.70924554,116.32,116.25,0.10804338]
[1644223365322,46.57523843,116.3,116.25,0.10804338]
[1644223365720,52.82523843,116.3,116.25,0.10804338]
[1644223366520,12.9079,116.29,116.25,0.10804338]
[1644223366720,13.1579,116.29,116.25,0.10804338]
[1644223366923,46.50708134,116.28,116.25,0.10804338]
[1644223367121,52.50708134,116.28,116.25,0.10804338]
[1644223367421,52.75708134,116.28,116.25,0.10804338]
[1644223368021,65.66648134,116.28,116.25,0.10804338]
[1644223372931,65.41648134,116.28,116.25,0.10804338]
[1644223374333,65.66648134,116.28,116.25,0.10804338]
[1644223381543,65.41648134,116.28,116.25,0.10804338]
[1644223382842,65.66648134,116.28,116.25,0.10804338]
[1644223387572,59.66648134,116.28,116.25,0.10804338]
[1644223388170,65.66648134,116.28,116.25,0.10804338]
[1644223388371,59.66648134,116.28,116.25,0.10804338]
[1644223388571,65.66648134,116.28,116.25,0.10804338]
[1644223400086,66.85104777,116.28,116.25,0.10804338]
[1644223400287,65.66648134,116.28,116.25,0.10804338]
[1644223400487,59.66648134,116.28,116.25,0.10804338]
[1644223401886,65.66648134,116.28,116.25,0.10804338]
[1644223403088,52.50708134,116.28,116.25,0.10804338]
[1644223403490,6.0,116.28,116.25,0.10804338]
[1644223403698,44.47156643,116.3,116.25,0.10804338]
[1644223403890,1.18456643,116.31,116.25,0.10804338]
[1644223404090,1.18456643,116.32,116.26,1.76627915]
[1644223404291,1.18456643,116.32,116.26,2.01627915]
[1644223404488,1.18456643,116.34,116.26,2.01627915]
[1644223404689,38.53675862,116.33,116.27,1.76627915]
[1644223405089,44.53675862,116.33,116.27,2.01627915]
[1644223405488,38.53675862,116.33,116.27,2.01627915]
[1644223405688,38.53675862,116.33,116.27,38.65133356]
[1644223407089,38.53675862,116.33,116.27,36.88505441]
[1644223407893,38.53675862,116.33,116.27,0.25]
[1644223408291,38.53675862,116.33,116.25,44.42242253]
[1644223408494,38.53675862,116.33,116.25,38.42242253]
[1644223408695,44.78675862,116.33,116.25,38.42242253]
[1644223408893,44.78675862,116.33,116.25,83.39972532]
[1644223410894,44.78675862,116.33,116.25,81.63344617]
[1644223412896,44.53675862,116.33,116.25,81.63344617]
[1644223413098,44.53675862,116.33,116.25,83.40528572]
[1644223414898,38.53675862,116.33,116.25,83.40528572]
[1644223415098,44.78675862,116.33,116.25,81.63344617]
[1644223415299,44.78675862,116.33,116.25,81.38344617]
[1644223416098,44.53675862,116.33,116.25,83.15528572]
[1644223416897,44.53675862,116.33,116.25,83.40528572]
[1644223417499,1.18456643,116.37,116.25,83.40528572]
[1644223417698,1.18456643,116.37,116.25,89.40528572]
[1644223417699,0.25,116.36,116.25,89.40528572]
[1644223418201,0.25,116.36,116.26,23.8283]
[1644223418399,7.18456643,116.37,116.26,36.1083]
[1644223418600,42.55759584,116.36,116.27,37.79508933]
[1644223418799,42.55759584,116.36,116.29,47.65907585]
[1644223418999,48.55759584,116.36,116.29,47.65907585]
[1644223419200,48.55759584,116.36,116.29,49.6809154]
[1644223419799,48.55759584,116.36,116.29,47.90907585]
[1644223420900,48.55759584,116.36,116.29,0.25]
[1644223421100,48.80759584,116.36,116.29,0.25]
[1644223421302,48.80759584,116.36,116.26,24.0783]
[1644223422099,48.80759584,116.36,116.27,40.96386244]
[1644223422304,48.80759584,116.36,116.27,41.21386244]
[1644223422501,48.80759584,116.36,116.28,23.3118]
[1644223422701,48.80759584,116.36,116.29,42.51128711]
[1644223422901,61.70869584,116.36,116.29,42.51128711]
[1644223423103,61.70869584,116.36,116.29,42.76128711]
[1644223426529,61.45869584,116.36,116.29,42.76128711]
[1644223426928,6.0,116.36,116.29,44.53312666]
[1644223427130,42.0362,116.38,116.29,44.53312666]
[1644223427332,42.0362,116.38,116.3,24.8392]
[1644223427531,36.0362,116.38,116.3,24.8392]
[1644223427831,36.2862,116.38,116.3,26.86103955]
[1644223428031,81.86237548,116.38,116.31,42.31112437]
[1644223429031,81.86237548,116.38,116.31,42.56112437]
[1644223431934,83.04694191,116.38,116.31,42.56112437]
[1644223432334,20.08256643,116.38,116.31,42.56112437]
[1644223432534,6.0,116.38,116.31,44.3300349]
[1644223432933,14.07976643,116.4,116.31,44.3300349]
[1644223432934,6.0,116.39,116.31,44.3300349]
[1644223433134,20.07976643,116.4,116.32,24.6066]
[1644223433336,36.61456861,116.39,116.33,36.10077139]
[1644223433737,42.61456861,116.39,116.33,36.35077139]
[1644223435537,42.61456861,116.39,116.32,24.6066]
[1644223435737,55.76106861,116.39,116.32,24.6066]
[1644223436239,55.76106861,116.39,116.32,24.8566]
[1644223436638,55.76106861,116.39,116.32,24.6066]
[1644223436838,55.76106861,116.39,116.32,24.8566]
[1644223438038,55.76106861,116.39,116.32,24.6066]
[1644223438238,55.76106861,116.39,116.29,12.28]
[1644223438439,56.94563504,116.39,116.27,36.2262]
[1644223438741,56.94563504,116.39,116.28,0.25]
[1644223438742,24.53726643,116.38,116.28,0.25]
[1644223438938,12.9001,116.36,116.28,0.25]
[1644223439138,34.56882721,116.35,116.28,45.87433198]
[1644223439338,34.81882721,116.35,116.28,45.87433198]
[1644223439538,40.81882721,116.35,116.28,45.87433198]
[1644223439940,40.81882721,116.35,116.27,23.9462]
[1644223440145,12.9016,116.34,116.25,1.876859]
[1644223440341,13.1516,116.34,116.27,23.3954]
[1644223440541,19.1516,116.34,116.27,23.3954]
[1644223441040,36.14952451,116.33,116.27,23.3954]
[1644223441244,49.30272451,116.33,116.25,0.10804338]
[1644223441542,55.30272451,116.33,116.25,0.10804338]
[1644223442141,79.31142451,116.33,116.25,0.10804338]
[1644223455661,2.1056109,116.32,116.25,0.10804338]
[1644223455860,12.9101,116.3,116.25,0.10804338]
[1644223456059,43.8849,116.3,116.25,0.10804338]
[1644223456259,44.1349,116.3,116.25,0.10804338]
[1644223456661,41.33905607,116.29,116.25,0.10804338]
[1644223456960,12.9106,116.28,116.25,0.10804338]
[1644223457161,18.9106,116.28,116.25,0.10804338]
[1644223457360,19.1606,116.28,116.25,0.10804338]
[1644223461981,12.9106,116.28,116.25,0.10804338]
[1644223462181,41.33905607,116.29,116.25,0.10804338]
[1644223462980,12.9063,116.3,116.25,0.10804338]
[1644223463181,12.9039,116.32,116.25,0.10804338]
[1644223463382,6.0,116.33,116.25,1.88010868]
[1644223463781,36.44176643,116.38,116.25,2.13010868]
[1644223463982,39.2457569,116.35,116.26,46.2239838]
[1644223464182,36.44176643,116.38,116.27,24.7154]
[1644223464384,36.44176643,116.38,116.27,26.4874653]
[1644223464583,36.69176643,116.38,116.27,26.7374653]
[1644223464982,12.8997,116.36,116.27,26.7374653]
[1644223465182,61.39832689,116.36,116.28,36.52171363]
[1644223465382,61.64832689,116.36,116.28,36.52171363]
[1644223465581,61.64832689,116.36,116.28,36.77171363]
[1644223467190,61.64832689,116.36,116.28,0.25]
[1644223467692,61.64832689,116.36,116.27,24.9654]
[1644223467891,61.64832689,116.36,116.27,24.7154]
[1644223468092,62.83289332,116.36,116.27,67.23981839]
[1644223468893,55.64832689,116.36,116.27,67.23981839]
[1644223469092,61.64832689,116.36,116.27,67.23981839]
[1644223469292,12.8997,116.36,116.27,67.23981839]
[1644223469494,14.08186643,116.38,116.28,1.7720653]
[1644223469692,1.18456643,116.4,116.29,12.28]
[1644223469892,38.72943255,116.46,116.29,63.88]
[1644223469893,1.18456643,116.41,116.29,63.88]
[1644223470094,1.18456643,116.42,116.3,100.1369653]
[1644223470294,1.18456643,116.44,116.31,106.67209994]
[1644223470493,35.00238121,116.45,116.32,24.1439]
[1644223470494,49.07814764,116.45,116.32,24.1439]
[1644223470699,46.73755586,116.43,116.33,72.67699066]
[1644223470898,46.73755586,116.43,116.33,59.78909066]
[1644223471101,46.73755586,116.43,116.33,67.81115596]
[1644223471501,65.62905586,116.43,116.33,67.81115596]
[1644223472401,66.81362229,116.43,116.33,67.81115596]
[1644223472601,66.81362229,116.43,116.32,24.1439]
[1644223473203,67.06362229,116.43,116.32,24.3939]
[1644223473702,67.06362229,116.43,116.33,45.55371893]
[1644223473900,1.18456643,116.42,116.33,45.55371893]
[1644223474101,12.8962,116.4,116.33,45.80371893]
[1644223474300,46.51243396,116.39,116.33,45.80371893]
[1644223474599,52.51243396,116.39,116.33,45.80371893]
[1644223475000,52.76243396,116.39,116.33,45.55371893]
[1644223475200,52.76243396,116.39,116.33,45.80371893]
[1644223475400,52.76243396,116.39,116.33,45.55371893]
[1644223475602,52.76243396,116.39,116.33,45.80371893]
[1644223477002,52.51243396,116.39,116.33,45.80371893]
[1644223477601,52.51243396,116.39,116.33,45.55371893]
[1644223478003,52.51243396,116.39,116.33,45.80371893]
[1644223478403,52.51243396,116.39,116.33,45.55371893]
[1644223478604,52.51243396,116.39,116.33,45.80371893]
[1644223478805,52.76243396,116.39,116.33,45.80371893]
[1644223479207,52.51243396,116.39,116.33,45.80371893]
[1644223480503,46.51243396,116.39,116.33,45.80371893]
[1644223482907,46.51243396,116.39,116.33,51.80371893]
[1644223485638,12.8929,116.42,116.33,53.58111335]
[1644223486434,36.66814674,116.41,116.33,65.86111335]
[1644223486834,55.56244674,116.41,116.33,64.08371893]
[1644223487133,55.81244674,116.41,116.33,58.08371893]
[1644223488136,55.81244674,116.41,116.33,64.08371893]
[1644223488335,55.81244674,116.41,116.33,58.08371893]
[1644223488635,55.81244674,116.41,116.33,0.25]
[1644223488934,55.81244674,116.41,116.32,24.3939]
[1644223489636,55.81244674,116.41,116.32,75.54620793]
[1644223490340,55.81244674,116.41,116.32,69.54620793]
[1644223490737,55.81244674,116.41,116.32,75.54620793]
[1644223491935,55.81244674,116.41,116.32,69.54620793]
[1644223493835,55.81244674,116.41,116.32,75.54620793]
[1644223494036,55.81244674,116.41,116.32,69.54620793]
[1644223494636,55.81244674,116.41,116.32,24.3939]
[1644223494837,55.81244674,116.41,116.32,24.1439]
[1644223495036,56.99701317,116.41,116.3,45.6962]
[1644223495235,56.99701317,116.41,116.31,6.0]
[1644223495236,1.18456643,116.4,116.31,6.0]
[1644223495437,1.18456643,116.4,116.3,51.9462]
[1644223495638,38.12373322,116.36,116.31,38.62861733]
[1644223495836,38.12373322,116.36,116.31,38.87861733]
[1644223496037,38.12373322,116.36,116.31,44.87861733]
[1644223496638,38.12373322,116.36,116.31,38.87861733]
[1644223496836,38.12373322,116.36,116.31,38.62861733]
[1644223498038,44.12373322,116.36,116.31,38.62861733]
[1644223498241,44.12373322,116.36,116.31,44.87861733]
[1644223498438,44.12373322,116.36,116.31,38.87861733]
[1644223498639,44.12373322,116.36,116.31,44.87861733]
[1644223498938,38.12373322,116.36,116.31,38.87861733]
[1644223499139,37.0053,116.39,116.31,38.87861733]
[1644223499339,37.2553,116.39,116.31,38.87861733]
[1644223499539,43.2553,116.39,116.31,38.87861733]
[1644223500238,48.74548041,116.38,116.31,38.87861733]
[1644223500639,54.74548041,116.38,116.31,38.87861733]
[1644223500944,67.89308041,116.38,116.3,45.6962]
[1644223501141,67.89308041,116.38,116.3,51.9462]
[1644223501340,69.07764684,116.38,116.3,51.9462]
[1644223501540,69.07764684,116.38,116.3,51.6962]
[1644223501742,67.89308041,116.38,116.3,91.78756013]
[1644223502542,69.07764684,116.38,116.3,91.78756013]
[1644223502743,67.89308041,116.38,116.3,91.78756013]
[1644223503645,67.64308041,116.38,116.3,91.78756013]
[1644223503844,67.89308041,116.38,116.3,92.03756013]
[1644223508254,48.74548041,116.38,116.3,92.03756013]
[1644223508456,25.29376643,116.39,116.3,106.09495455]
[1644223508659,1.18456643,116.39,116.3,115.27495455]
[1644223508853,12.895,116.4,116.3,115.27495455]
[1644223508854,14.07956643,116.4,116.3,115.27495455]
[1644223509460,34.33223367,116.39,116.3,115.27495455]
[1644223510260,34.58223367,116.39,116.3,115.27495455]
[1644223510659,40.58223367,116.39,116.3,115.27495455]
[1644223511560,34.58223367,116.39,116.3,106.09495455]
[1644223513764,34.33223367,116.39,116.3,106.09495455]
[1644223517478,12.895,116.4,116.3,106.09495455]
[1644223517679,18.895,116.4,116.3,106.09495455]
[1644223517880,1.18456643,116.41,116.31,51.6]
[1644223518080,1.18456643,116.43,116.32,12.28]
[1644223518281,1.18456643,116.43,116.34,39.57224369]
[1644223518480,36.87411459,116.43,116.36,43.41663814]
[1644223518680,1.18456643,116.45,116.36,61.69663814]
[1644223518883,1.18456643,116.46,116.37,24.34943565]
[1644223519080,1.18456643,116.47,116.38,12.28]
[1644223519301,46.51583255,116.52,116.38,37.02373565]
[1644223519302,1.18456643,116.49,116.38,37.02373565]
[1644223519501,1.18456643,116.49,116.39,24.3866]
[1644223519703,1.18456643,116.5,116.4,48.46971553]
[1644223519902,1.18456643,116.51,116.4,63.37685118]
[1644223520102,1.18456643,116.52,116.41,24.3866]
[1644223520303,1.18456643,116.52,116.42,12.28]
[1644223520507,1.18456643,116.53,116.42,14.05723565]
[1644223520704,34.36282006,116.52,116.43,47.03820618]
[1644223520904,34.36282006,116.52,116.44,12.28]
[1644223521105,34.36282006,116.52,116.45,47.74758941]
[1644223521304,14.06406643,116.54,116.45,47.99758941]
[1644223521509,14.06406643,116.54,116.45,66.52258941]
[1644223521706,14.31406643,116.54,116.45,66.52258941]
[1644223522303,14.06406643,116.54,116.45,66.52258941]
[1644223522504,1.18456643,116.54,116.45,66.52258941]
[1644223522803,14.06176643,116.56,116.46,12.28]
[1644223523006,12.8772,116.56,116.46,12.28]
[1644223523205,6.0,116.56,116.46,18.53]
[1644223523407,46.52903316,116.55,116.47,45.05672568]
[1644223523605,46.52903316,116.55,116.47,51.05672568]
[1644223523804,46.52903316,116.55,116.47,51.30672568]
[1644223524205,46.77903316,116.55,116.47,51.30672568]
[1644223525005,46.77903316,116.55,116.47,45.30672568]
[1644223528609,59.65793316,116.55,116.47,0.25]
[1644223528809,65.65793316,116.55,116.45,12.28]
[1644223529411,65.65793316,116.55,116.43,41.4782]
[1644223529609,65.65793316,116.55,116.44,35.69482896]
[1644223531012,65.65793316,116.55,116.42,22.9282]
[1644223531213,77.93793316,116.55,116.42,23.1782]
[1644223531415,77.93793316,116.55,116.42,29.1782]
[1644223531612,77.93793316,116.55,116.42,23.1782]
[1644223532012,77.93793316,116.55,116.43,44.25347015]
[1644223532412,79.12249959,116.55,116.43,44.25347015]
[1644223532812,79.12249959,116.55,116.43,50.25347015]
[1644223533014,79.12249959,116.55,116.43,44.25347015]
[1644223533515,79.12249959,116.55,116.43,50.25347015]
[1644223533715,79.12249959,116.55,116.43,44.50347015]
[1644223533915,78.87249959,116.55,116.43,44.50347015]
[1644223535120,79.12249959,116.55,116.43,50.50347015]
[1644223535320,77.93793316,116.55,116.43,50.50347015]
[1644223535518,79.12249959,116.55,116.43,50.50347015]
[1644223535720,77.68793316,116.55,116.43,50.50347015]
[1644223535920,77.68793316,116.55,116.43,50.25347015]
[1644223537222,77.68793316,116.55,116.43,52.28633888]
[1644223537422,77.68793316,116.55,116.43,77.00723888]
[1644223537822,71.93793316,116.55,116.43,77.00723888]
[1644223538822,72.87249959,116.55,116.43,77.00723888]
[1644223539023,71.68793316,116.55,116.43,77.00723888]
[1644223539223,77.68793316,116.55,116.43,77.00723888]
[1644223539425,78.87249959,116.55,116.43,77.00723888]
[1644223539623,78.87249959,116.55,116.43,71.00723888]
[1644223539828,78.87249959,116.55,116.43,69.22437015]
[1644223540224,79.12249959,116.55,116.43,71.0071877]